fUST/lending_fUST_20240622
["ID","MTS","AMOUNT","RATE_DAILY","PERIOD"]
[330082965,1718989840448,-770.67675683,0.00018999,2]
[330082967,1718989840457,-154.98450155,0.00018999,2]
[330082969,1718989840467,-539.59557086,0.00019,2]
[330082971,1718989840476,-154.83742071,0.00019038,2]
[330082973,1718989840485,-337.900098,0.00019039,2]
[330082975,1718989840494,-337.900098,0.00019039,2]
[330082977,1718989840504,-250.0,0.00019041,2]
[330082979,1718989840515,-151.0,0.00019077,2]
[330082981,1718989840525,-151.0,0.00019077,2]
[330082983,1718989840536,-152.806506,0.00019077,2]
[330082985,1718989840546,-151.0,0.00019078,2]
[330082987,1718989840556,-151.0,0.00019078,2]
[330082989,1718989840566,-3345.66640368,0.00019078,2]
[330082991,1718989840576,-151.0,0.00019078,2]
[330082993,1718989840586,-416.165831,0.00019078,2]
[330082995,1718989840595,-416.165831,0.00019078,2]
[330082997,1718989840605,-296.793454,0.00019078,2]
[330083000,1718989840615,-292.88901452,0.0001913,2]
[330083002,1718989840625,-151.0,0.00019131,2]
[330083004,1718989840641,-151.0,0.00019131,2]
[330083006,1718989840652,-151.0,0.00019131,2]
[330083008,1718989840661,-151.0,0.00019131,2]
[330083010,1718989840671,-167.929505,0.00019131,2]
[330083012,1718989840681,-151.0,0.00019131,2]
[330083014,1718989840691,-663.126128,0.00019131,2]
[330083016,1718989840701,-663.126128,0.00019131,2]
[330083018,1718989840711,-200.723184,0.00019131,2]
[330083020,1718989840720,-200.723184,0.00019131,2]
[330083022,1718989840729,-152.311017,0.00019131,2]
[330083024,1718989840739,-151.0,0.00019131,2]
[330083026,1718989840750,-723.48959224,0.00019131,2]
[330083028,1718989840760,-436.513536,0.00019132,2]
[330083030,1718989840769,-436.513536,0.00019132,2]
[330083032,1718989840779,-151.0,0.00019132,2]
[330083034,1718989840789,-154.83742071,0.00019134,2]
[330083036,1718989840798,-154.83742071,0.00019134,2]
[330083038,1718989840808,-157.13057066,0.00019134,2]
[330083040,1718989840817,-151.0,0.00019135,2]
[330083042,1718989840826,-154.83742071,0.00019135,2]
[330083044,1718989840836,-154.83742071,0.00019135,2]
[330083046,1718989840846,-154.83742071,0.00019136,2]
[330083048,1718989840856,-402.44339184,0.00019137,2]
[330083050,1718989840865,-317.94108609,0.00019137,2]
[330083052,1718989840875,-239.44440466,0.00019137,2]
[330083054,1718989840887,-151.0,0.00019138,2]
[330083056,1718989840896,-175.89997227,0.00019138,2]
[330083058,1718989840906,-151.0,0.00019139,2]
[330083060,1718989840916,-337.900098,0.00019139,2]
[330083062,1718989840925,-337.900098,0.00019139,2]
[330083064,1718989840936,-175.89997227,0.0001914,2]
[330083066,1718989840945,-151.0,0.00019145,2]
[330083068,1718989840954,-151.0,0.00019145,2]
[330083070,1718989840964,-289.294637,0.00019145,2]
[330083072,1718989840973,-151.0,0.00019145,2]
[330083074,1718989840983,-151.0,0.00019145,2]
[330083076,1718989840992,-151.0,0.00019145,2]
[330083078,1718989841002,-242.091546,0.00019145,2]
[330083080,1718989841012,-663.126128,0.00019145,2]
[330083082,1718989841021,-663.126128,0.00019145,2]
[330083084,1718989841030,-200.723184,0.00019145,2]
[330083086,1718989841040,-200.723184,0.00019145,2]
[330083088,1718989841049,-151.0,0.00019145,2]
[330083090,1718989841058,-416.165831,0.00019145,2]
[330083092,1718989841068,-416.165831,0.00019145,2]
[330083094,1718989841078,-296.793454,0.00019145,2]
[330083097,1718989841087,-151.0,0.00019146,2]
[330083099,1718989841101,-436.513536,0.00019153,2]
[330083101,1718989841111,-436.513536,0.00019153,2]
[330083103,1718989841120,-151.0,0.00019153,2]
[330083105,1718989841130,-151.0,0.00019154,2]
[330083107,1718989841139,-151.0,0.00019161,2]
[330083109,1718989841149,-151.0,0.00019163,2]
[330083110,1718989841158,-151.0,0.00019164,2]
[330083112,1718989841168,-151.0,0.00019168,2]
[330083114,1718989841181,-151.0,0.00019177,2]
[330083117,1718989841192,-151.0,0.00019177,2]
[330083118,1718989841203,-151.0,0.00019177,2]
[330083121,1718989841214,-436.513536,0.00019177,2]
[330083122,1718989841224,-436.513536,0.00019177,2]
[330083123,1718989841236,-151.0,0.00019177,2]
[330083124,1718989841249,-151.0,0.00019177,2]
[330083125,1718989841259,-151.0,0.00019177,2]
[330083126,1718989841270,-663.126128,0.00019177,2]
[330083127,1718989841281,-663.126128,0.00019177,2]
[330083128,1718989841291,-200.723184,0.00019177,2]
[330083129,1718989841302,-200.723184,0.00019177,2]
[330083130,1718989841312,-154.83742071,0.00019177,2]
[330083131,1718989841322,-337.900098,0.00019177,2]
[330083132,1718989841333,-337.900098,0.00019177,2]
[330083133,1718989841343,-154.83742071,0.00019177,2]
[330083134,1718989841354,-373.45450727,0.00019177,2]
[330083135,1718989841365,-500.0,0.00019178,2]
[330083136,1718989841376,-366.95811086,0.00019178,2]
[330083137,1718989841395,-500.0,0.00019178,2]
[330083138,1718989841406,-155.13311915,0.00019178,2]
[330083139,1718989841416,-500.0,0.00019178,2]
[330083140,1718989841429,-500.0,0.00019178,2]
[330083141,1718989841439,-500.0,0.00019178,2]
[330083142,1718989841449,-415.70342197,0.00019178,2]
[330083143,1718989841459,-500.0,0.00019178,2]
[330083144,1718989841469,-500.0,0.00019178,2]
[330083145,1718989841478,-500.0,0.00019178,2]
[330083146,1718989841488,-500.0,0.00019178,2]
[330083147,1718989841497,-500.0,0.00019178,2]
[330083149,1718989841649,-500.0,0.00019178,2]
[330083150,1718989841659,-500.0,0.00019178,2]
[330083152,1718989841668,-500.0,0.00019178,2]
[330083154,1718989841677,-500.0,0.00019178,2]
[330083156,1718989841686,-339.15906783,0.00019178,2]
[330083158,1718989841695,-500.0,0.00019178,2]
[330083160,1718989841704,-500.0,0.00019178,2]
[330083162,1718989841713,-500.0,0.00019178,2]
[330083164,1718989841722,-500.0,0.00019178,2]
[330083166,1718989841731,-500.0,0.00019178,2]
[330083168,1718989841740,-500.0,0.00019178,2]
[330083170,1718989841749,-500.0,0.00019178,2]
[330083172,1718989841758,-500.0,0.00019178,2]
[330083174,1718989841767,-500.0,0.00019178,2]
[330083176,1718989841776,-500.0,0.00019178,2]
[330083178,1718989841784,-500.0,0.00019178,2]
[330083180,1718989841794,-500.0,0.00019178,2]
[330083182,1718989841803,-201.86816149,0.00019178,2]
[330083184,1718989841812,-500.0,0.00019178,2]
[330083186,1718989841821,-500.0,0.00019178,2]
[330083188,1718989841831,-500.0,0.00019178,2]
[330083190,1718989841840,-500.0,0.00019178,2]
[330083192,1718989841849,-500.0,0.00019178,2]
[330083194,1718989841858,-500.0,0.00019178,2]
[330083196,1718989841867,-500.0,0.00019178,2]
[330083198,1718989841876,-500.0,0.00019178,2]
[330083200,1718989841893,-500.0,0.00019178,2]
[330083202,1718989841902,-500.0,0.00019178,2]
[330083204,1718989841911,-500.0,0.00019178,2]
[330083206,1718989841920,-500.0,0.00019178,2]
[330083208,1718989841929,-500.0,0.00019178,2]
[330083210,1718989841937,-500.0,0.00019178,2]
[330083212,1718989841946,-500.0,0.00019178,2]
[330083214,1718989841955,-500.0,0.00019178,2]
[330083216,1718989841964,-200.0,0.00019178,2]
[330083217,1718989841973,-500.0,0.00019178,2]
[330083218,1718989841982,-500.0,0.00019178,2]
[330083219,1718989841991,-500.0,0.00019178,2]
[330083220,1718989842001,-244.99780249,0.00019178,2]
[330083221,1718989842010,-500.0,0.00019178,2]
[330083222,1718989842020,-422.28514357,0.00019178,2]
[330083223,1718989842029,-500.0,0.00019178,2]
[330083224,1718989842039,-500.0,0.00019178,2]
[330083225,1718989842048,-337.98253564,0.00019178,2]
[330083226,1718989842058,-200.0,0.00019178,2]
[330083227,1718989842068,-227.59701619,0.00019178,2]
[330083228,1718989842077,-398.43363301,0.00019178,2]
[330083229,1718989842091,-500.0,0.00019178,2]
[330083230,1718989842101,-500.0,0.00019178,2]
[330083231,1718989842110,-500.0,0.00019178,2]
[330083232,1718989842119,-500.0,0.00019178,2]
[330083233,1718989842135,-491.65813796,0.00019178,2]
[330083234,1718989842145,-445.14949773,0.00019178,2]
[330083236,1718989842154,-500.0,0.00019178,2]
[330083238,1718989842164,-258.54192464,0.00019178,2]
[330083240,1718989842175,-500.0,0.00019178,2]
[330083242,1718989842185,-311.7335342,0.00019178,2]
[330083257,1718989842580,-207.075787,0.00017942,2]
[330083258,1718989842590,-296.793454,0.00018219,2]
[330083259,1718989842599,-207.075787,0.00018998,2]
[330083260,1718989842608,-296.793454,0.00018998,2]
[330083261,1718989842616,-207.075787,0.00019078,2]
[330083262,1718989842625,-296.793454,0.00019078,2]
[330083263,1718989842641,-207.075787,0.00019145,2]
[330083264,1718989842650,-296.793454,0.00019145,2]
[330083265,1718989842659,-188.2664658,0.00019178,2]
[330083266,1718989842669,-500.0,0.00019178,2]
[330083267,1718989842678,-462.44824074,0.00019178,2]
[330083268,1718989842687,-500.0,0.00019178,2]
[330083269,1718989842696,-500.0,0.00019178,2]
[330083270,1718989842706,-500.0,0.00019178,2]
[330083271,1718989842715,-500.0,0.00019178,2]
[330083272,1718989842724,-500.0,0.00019178,2]
[330083273,1718989842734,-500.0,0.00019178,2]
[330083274,1718989842743,-500.0,0.00019178,2]
[330083275,1718989842752,-500.0,0.00019178,2]
[330083276,1718989842762,-500.0,0.00019178,2]
[330083277,1718989842771,-290.48419176,0.00019178,2]
[330083278,1718989842781,-500.0,0.00019178,2]
[330083279,1718989842790,-500.0,0.00019178,2]
[330083280,1718989842800,-359.13537241,0.00019178,2]
[330083281,1718989842809,-243.93895899,0.00019178,2]
[330083282,1718989842818,-355.96780434,0.00019178,2]
[330083283,1718989842827,-210.46506753,0.00019178,2]
[330083285,1718989842837,-500.0,0.00019178,2]
[330083286,1718989842846,-444.16078928,0.00019178,2]
[330083287,1718989842856,-500.0,0.00019178,2]
[330083288,1718989842866,-169.71826626,0.00019178,2]
[330083289,1718989842876,-227.68204795,0.00019178,2]
[330083290,1718989842889,-501.3078284,0.00019178,2]
[330083291,1718989842899,-190.35462398,0.00019178,2]
[330083293,1718989842908,-647.26473583,0.00019178,2]
[330083295,1718989842917,-422.12202454,0.00019178,2]
[330083297,1718989842927,-608.4379597,0.00019178,2]
[330083298,1718989842937,-500.0,0.00019178,2]
[330083299,1718989842946,-608.4379597,0.00019178,2]
[330083300,1718989842957,-500.0,0.00019178,2]
[330083301,1718989842967,-608.4379597,0.00019178,2]
[330083302,1718989842977,-500.0,0.00019178,2]
[330083303,1718989842987,-608.4379597,0.00019178,2]
[330083304,1718989842997,-341.49413582,0.00019178,2]
[330083305,1718989843007,-608.4379597,0.00019178,2]
[330083306,1718989843016,-651.89781395,0.00019178,2]
[330083307,1718989843026,-500.0,0.00019178,2]
[330083309,1718989843036,-356.88590721,0.00019178,2]
[330083311,1718989843045,-151.0,0.00019178,2]
[330083313,1718989843055,-151.0,0.00019178,2]
[330083315,1718989843064,-186.870059,0.00019178,2]
[330083317,1718989843074,-151.0,0.00019178,2]
[330083319,1718989843084,-151.0,0.00019178,2]
[330083321,1718989843093,-215.946329,0.00019178,2]
[330083323,1718989843108,-151.0,0.00019178,2]
[330083325,1718989843117,-258.38648,0.00019178,2]
[330083327,1718989843128,-151.0,0.00019178,2]
[330083329,1718989843145,-244.633128,0.00019178,2]
[330083333,1718989843154,-436.513536,0.00019178,2]
[330083337,1718989843163,-436.513536,0.00019178,2]
[330083339,1718989843173,-436.513536,0.00019178,2]
[330083341,1718989843185,-436.513536,0.00019178,2]
[330083343,1718989843196,-436.513536,0.00019178,2]
[330083345,1718989843205,-436.513529,0.00019178,2]
[330083347,1718989843214,-151.0,0.00019178,2]
[330083350,1718989843223,-151.0,0.00019178,2]
[330083352,1718989843233,-151.0,0.00019178,2]
[330083355,1718989843242,-151.0,0.00019178,2]
[330083357,1718989843251,-151.0,0.00019178,2]
[330083360,1718989843260,-151.0,0.00019178,2]
[330083362,1718989843269,-151.0,0.00019178,2]
[330083363,1718989843279,-151.0,0.00019178,2]
[330083365,1718989843289,-151.0,0.00019178,2]
[330083367,1718989843298,-151.0,0.00019178,2]
[330083369,1718989843308,-663.126128,0.00019178,2]
[330083370,1718989843318,-663.126128,0.00019178,2]
[330083371,1718989843328,-663.126128,0.00019178,2]
[330083372,1718989843337,-663.126128,0.00019178,2]
[330083373,1718989843347,-663.126128,0.00019178,2]
[330083374,1718989843356,-663.126122,0.00019178,2]
[330083375,1718989843365,-200.723184,0.00019178,2]
[330083376,1718989843374,-200.723184,0.00019178,2]
[330083377,1718989843392,-200.723184,0.00019178,2]
[330083378,1718989843402,-200.723188,0.00019178,2]
[330083379,1718989843411,-151.0,0.00019178,2]
[330083380,1718989843421,-151.0,0.00019178,2]
[330083381,1718989843431,-293.790358,0.00019178,2]
[330083382,1718989843440,-264.605845,0.00019178,2]
[330083383,1718989843449,-416.165831,0.00019178,2]
[330083384,1718989843459,-416.165831,0.00019178,2]
[330083385,1718989843468,-416.165831,0.00019178,2]
[330083386,1718989843478,-416.165831,0.00019178,2]
[330083387,1718989843488,-416.165831,0.00019178,2]
[330083388,1718989843498,-416.165831,0.00019178,2]
[330083389,1718989843507,-416.165831,0.00019178,2]
[330083390,1718989843517,-416.165822,0.00019178,2]
[330083391,1718989843527,-337.900098,0.00019178,2]
[330083392,1718989843537,-337.900098,0.00019178,2]
[330083393,1718989843547,-337.900098,0.00019178,2]
[330083394,1718989843556,-337.900098,0.00019178,2]
[330083395,1718989843566,-337.900098,0.00019178,2]
[330083396,1718989843576,-337.900096,0.00019178,2]
[330083397,1718989843586,-296.793454,0.00019178,2]
[330083398,1718989843596,-296.793454,0.00019178,2]
[330083399,1718989843606,-296.793454,0.00019178,2]
[330083400,1718989843615,-207.075787,0.00019178,2]
[330083401,1718989843624,-207.075787,0.00019178,2]
[330083402,1718989843639,-296.793454,0.00019178,2]
[330083403,1718989843649,-207.075787,0.00019178,2]
[330083404,1718989843659,-296.793454,0.00019178,2]
[330083405,1718989843669,-170.86123,0.00019178,2]
[330083406,1718989843678,-163.0035386,0.00019178,2]
[330083407,1718989843688,-166.555705,0.00019178,2]
[330083408,1718989843697,-1344.227136,0.000195,2]
[330083409,1718989843706,-620.00002371,0.00019957,2]
[330083410,1718989843715,-292.86437788,0.0002,2]
[330083411,1718989843725,-314.62809134,0.0002,2]
[330083412,1718989843734,-435.0,0.0002,2]
[330083413,1718989843744,-154.96847603,0.0002,2]
[330083414,1718989843753,-158.17025702,0.0002,2]
[330083419,1718989843881,-578.19465922,0.0002,2]
[330083420,1718989843900,-2980.268341,0.0002,2]
[330083422,1718989843916,-13732.731659,0.0002,2]
[330083423,1718989843926,-252.0,0.0002,2]
[330083424,1718989843936,-1000.0,0.0002,2]
[330083425,1718989843946,-627.924084,0.00020548,2]
[330083426,1718989843957,-620.00000119,0.00020954,2]
[330083427,1718989843967,-750.0,0.00021096,2]
[330083428,1718989843978,-159.203095,0.00021096,2]
[330083429,1718989843987,-425.315595,0.00021918,2]
[330083430,1718989843997,-425.315595,0.00021918,2]
[330083431,1718989844007,-425.315595,0.00021918,2]
[330083432,1718989844017,-425.315595,0.00021918,2]
[330083433,1718989844027,-425.315595,0.00021918,2]
[330083434,1718989844037,-425.315595,0.00021918,2]
[330083435,1718989844047,-425.315604,0.00021918,2]
[330083436,1718989844056,-147.29969465,0.00021918,2]
[330083437,1718989844193,-19.36697135,0.00021918,2]
[330083438,1718989844203,-368.41484238,0.00022,2]
[330083439,1718989844212,-1230.30997476,0.00022,2]
[330083440,1718989844222,-374.0,0.00022,2]
[330083441,1718989844232,-160.0,0.00022,2]
[330083442,1718989844242,-620.00000006,0.00022002,2]
[330083443,1718989844251,-1685.53709406,0.0002217,2]
[330083444,1718989844261,-374.0,0.00022192,2]
[330083445,1718989844272,-166.666666,0.00022431,2]
[330083446,1718989844282,-374.0,0.00022466,2]
[330083447,1718989844292,-320.0,0.00022548,2]
[330083448,1718989844301,-374.0,0.0002274,2]
[330083449,1718989844311,-166.666666,0.00022944,2]
[330083450,1718989844320,-374.0,0.00023014,2]
[330083451,1718989844329,-374.0,0.00023014,2]
[330083452,1718989844339,-480.0,0.00023096,2]
[330083453,1718989844349,-620.0,0.00023102,2]
[330083454,1718989844358,-166.666666,0.00023456,2]
[330083455,1718989844368,-447.23248995,0.00023644,2]
[330083456,1718989844377,-3182.83034131,0.000239,2]
[330083457,1718989844391,-166.666666,0.00023969,2]
[330083458,1718989844401,-1000.0,0.00024,24]
[330083459,1718989844410,-594.0,0.00024,2]
[330083460,1718989844419,-384.0,0.00024164,2]
[330083461,1718989844428,-374.0,0.00024164,2]
[330083462,1718989844437,-620.0,0.00024257,2]
[330083463,1718989844447,-166.666666,0.00024482,2]
[330083464,1718989844456,-3000.0,0.000246,2]
[330083465,1718989844466,-3000.0,0.0002461,2]
[330083466,1718989844475,-3000.0,0.0002462,2]
[330083467,1718989844485,-1706.92557986,0.0002463,2]
[330098383,1718990294961,308.042464,0.00013927,2]
[330098387,1718990344005,154.83742071,0.00013927,2]
[330098388,1718990358995,154.83742071,0.00013927,2]
[330098392,1718990594090,195.39624549,9.999e-05,2]
[330098393,1718990623487,24900.0,0.00013742,2]
[330098396,1718990803784,188.82288385,0.00013742,2]
[330098398,1718990897080,-300.0,0.0001414,2]
[330098399,1718990897107,-300.0,0.0001414,2]
[330098400,1718990897133,-5990.0,0.00014141,2]
[330098401,1718990908148,-598.37949214,0.0001414,2]
[330098402,1718990908222,-305.62013605,0.0001414,2]
[330098404,1718990934014,-616.45948471,0.00014139,2]
[330098405,1718990934889,-444.36619069,0.00014139,2]
[330098406,1718990958129,-637.67599822,0.00014138,2]
[330098407,1718990958184,-172.51905523,0.00014138,2]
[330098412,1718990983136,-653.87989929,0.00014138,2]
[330098413,1718990983189,-314.17596101,0.00014138,2]
[330098415,1718991008111,-673.24101649,0.00014137,2]
[330098525,1718991033501,-154.83742071,0.00014136,2]
[330098526,1718991033510,-9598.83657696,0.00014136,2]
[330098527,1718991033520,-191.09191803,0.00014136,2]
[330098528,1718991033531,-10440.58710029,0.00014137,2]
[330098529,1718991033540,-1486.780215,0.00014138,2]
[330098530,1718991033550,-2567.74462911,0.00014145,2]
[330098531,1718991033559,-2567.74462911,0.00014145,2]
[330098532,1718991033571,-1203.0600951,0.00014147,2]
[330098533,1718991033581,-516.57466289,0.00014147,2]
[330098534,1718991033590,-154.83742071,0.00014147,2]
[330098536,1718991033599,-565.60606837,0.00014645,2]
[330098537,1718991033608,-565.60606837,0.00014645,2]
[330098539,1718991033617,-1503.59915807,0.00014645,2]
[330098541,1718991033627,-154.83742071,0.0001474,2]
[330098543,1718991033636,-190.50091096,0.00014741,2]
[330098545,1718991033645,-354.97357793,0.000149,2]
[330098547,1718991033655,-157.13057066,0.00014903,2]
[330098549,1718991033665,-154.83742071,0.00014904,2]
[330098551,1718991033674,-292.88901452,0.00014904,2]
[330098553,1718991033683,-154.83742071,0.00014905,2]
[330098555,1718991033692,-208.69640954,0.00014948,2]
[330098557,1718991033702,-2413.03400432,0.00015,2]
[330098559,1718991033711,-723.48959224,0.00015,2]
[330098560,1718991033721,-527.87878285,0.00015,2]
[330098561,1718991033733,-10558.24410271,0.00015002,2]
[330098563,1718991033743,-737.76200684,0.00015044,2]
[330098565,1718991033754,-245.37582515,0.00015075,2]
[330098567,1718991033763,-1487.99528447,0.00015075,2]
[330098569,1718991033772,-209.65803912,0.00015114,2]
[330098571,1718991033782,-195.39624549,0.00015114,2]
[330098573,1718991033791,-3422.66036901,0.00017021,2]
[330098575,1718991033801,-1102.45850324,0.00017109,2]
[330098577,1718991033811,-2646.43428135,0.0001711,2]
[330098579,1718991033820,-3124.43019182,0.0001711,4]
[330098581,1718991033829,-162.34956199,0.00017111,2]
[330098582,1718991033839,-2114.63043161,0.00017112,2]
[330098584,1718991033848,-305.74182143,0.00017112,2]
[330098586,1718991033857,-990.19657357,0.00017112,2]
[330098588,1718991033867,-154.83742071,0.00017112,2]
[330098590,1718991033876,-154.83742071,0.00017112,2]
[330098592,1718991033885,-154.83742071,0.00017112,2]
[330098594,1718991033895,-1444.11597223,0.00017113,2]
[330098596,1718991033904,-597.44024014,0.00017113,2]
[330098598,1718991033915,-932.60140374,0.00017113,2]
[330098600,1718991033925,-2114.63043161,0.00017113,2]
[330098602,1718991033935,-530.87340588,0.00017113,2]
[330098604,1718991033945,-344.50024373,0.00017114,2]
[330098606,1718991033954,-154.83742071,0.00017114,2]
[330098608,1718991033963,-154.83742071,0.00017114,2]
[330098610,1718991033973,-317.94108609,0.00017115,2]
[330098612,1718991033988,-401.52259031,0.00017116,2]
[330098614,1718991033997,-154.83742071,0.00017116,2]
[330098616,1718991034007,-490.07682753,0.00017116,2]
[330098618,1718991034016,-317.94108609,0.00017117,2]
[330098620,1718991034027,-239.44440466,0.00017117,2]
[330098622,1718991034037,-1319.40316174,0.00017117,2]
[330098624,1718991034046,-154.83742071,0.00017117,2]
[330098626,1718991034056,-280.16889303,0.00018,2]
[330098628,1718991034066,-1441.02560619,0.000189,2]
[330098630,1718991034075,-3422.66036898,0.00019013,2]
[330098632,1718991034085,-250.0,0.00019041,2]
[330098634,1718991034094,-376.10578729,0.00019178,2]
[330098636,1718991034103,-170.75727129,0.00019178,2]
[330098638,1718991034112,-180.97934725,0.00019178,2]
[330098640,1718991034122,-500.0,0.00019178,2]
[330098642,1718991034131,-500.0,0.00019178,2]
[330098644,1718991034140,-500.0,0.00019178,2]
[330098646,1718991034149,-500.0,0.00019178,2]
[330098648,1718991034158,-500.0,0.00019178,2]
[330098650,1718991034167,-616.19101523,0.00019178,2]
[330098652,1718991034176,-500.0,0.00019178,2]
[330098653,1718991034186,-500.0,0.00019178,2]
[330098655,1718991034196,-500.0,0.00019178,2]
[330098658,1718991034206,-500.0,0.00019178,2]
[330098659,1718991034215,-500.0,0.00019178,2]
[330098661,1718991034224,-500.0,0.00019178,2]
[330098663,1718991034239,-500.0,0.00019178,2]
[330098665,1718991034248,-402.93043331,0.00019178,2]
[330098667,1718991034257,-500.0,0.00019178,2]
[330098669,1718991034267,-500.0,0.00019178,2]
[330098671,1718991034277,-500.0,0.00019178,2]
[330098673,1718991034286,-500.0,0.00019178,2]
[330098675,1718991034297,-500.0,0.00019178,2]
[330098677,1718991034306,-500.0,0.00019178,2]
[330098679,1718991034316,-500.0,0.00019178,2]
[330098681,1718991034326,-500.0,0.00019178,2]
[330098683,1718991034336,-500.0,0.00019178,2]
[330098686,1718991034346,-500.0,0.00019178,2]
[330098688,1718991034357,-170.415214,0.00019178,2]
[330098690,1718991034368,-314.62809134,0.0002,2]
[330098692,1718991034378,-154.83742071,0.0002,2]
[330098694,1718991034388,-321.21925512,0.0002,2]
[330098696,1718991034398,-534.57135292,0.00021,2]
[330098698,1718991034408,-3422.66036898,0.00021006,2]
[330098700,1718991034418,-750.0,0.00021096,2]
[330098702,1718991034427,-164.196047,0.00021096,2]
[330098704,1718991034437,-166.666666,0.00021918,2]
[330098706,1718991034447,-374.0,0.00022,2]
[330098708,1718991034456,-374.0,0.00022192,2]
[330098710,1718991034466,-166.666666,0.00022431,2]
[330098712,1718991034475,-166.666666,0.00022944,2]
[330098714,1718991034490,-3422.66036898,0.00022998,2]
[330098715,1718991034499,-374.0,0.00023014,2]
[330098717,1718991034508,-166.666666,0.00023456,2]
[330098719,1718991034519,-1000.0,0.000236,2]
[330098721,1718991034529,-1441.02560619,0.000239,2]
[330098723,1718991034538,-166.666666,0.00023969,2]
[330098725,1718991034548,-5000.0,0.00024,2]
[330098727,1718991034558,-1000.0,0.000241,2]
[330098729,1718991034568,-374.0,0.00024164,2]
[330098731,1718991034579,-1005.52066388,0.00024189,2]
[330098733,1718991034589,-593.0,0.000242,2]
[330098735,1718991034599,-622.61066795,0.00024287,2]
[330098737,1718991034609,-166.666666,0.00024482,2]
[330098739,1718991034620,-306.0,0.00024493,2]
[330098741,1718991034630,-153.0,0.00024493,2]
[330098743,1718991034640,-153.0,0.00024493,2]
[330098745,1718991034650,-153.0,0.00024493,2]
[330098747,1718991034659,-153.0,0.00024493,2]
[330098749,1718991034669,-153.0,0.00024493,2]
[330098751,1718991034679,-153.0,0.00024493,2]
[330098753,1718991034687,-153.0,0.00024493,2]
[330098755,1718991034697,-153.0,0.00024493,2]
[330098757,1718991034706,-240.454,0.00024507,2]
[330098759,1718991034715,-272.40822021,0.00024581,2]
[330098761,1718991034724,-11142.0,0.00024599,2]
[330098763,1718991034737,-252.0,0.000246,2]
[330098765,1718991034746,-3000.0,0.000246,2]
[330098767,1718991034756,-38177.250826,0.000246,2]
[330098769,1718991034765,-151.0,0.000246,7]
[330098771,1718991034775,-151.0,0.000246,7]
[330098773,1718991034784,-1000.0,0.000246,2]
[330098775,1718991034794,-296.793453,0.000246,7]
[330098777,1718991034804,-181.53915781,0.0002463,2]
[330098779,1718991034814,-286.98817067,0.0002463,2]
[330098781,1718991034824,-500.0,0.0002465,2]
[330098783,1718991034833,-500.0,0.0002465,2]
[330098785,1718991034843,-500.0,0.0002465,2]
[330098787,1718991034853,-500.0,0.0002465,2]
[330098789,1718991034863,-500.0,0.0002465,2]
[330098791,1718991034873,-500.0,0.0002465,2]
[330098793,1718991034882,-500.0,0.0002465,2]
[330098795,1718991034892,-500.0,0.0002465,2]
[330098797,1718991034902,-500.0,0.0002465,2]
[330098799,1718991034911,-500.0,0.0002465,2]
[330098801,1718991034921,-500.0,0.0002465,2]
[330098803,1718991034931,-583.23,0.0002465,2]
[330098805,1718991034940,-165.353781,0.00024658,7]
[330098807,1718991034950,-276.455137,0.0002466,7]
[330098809,1718991034959,-276.455137,0.0002476,7]
[330098811,1718991034969,-276.455137,0.0002476,7]
[330098813,1718991034978,-276.455137,0.0002485,7]
[330098815,1718991034989,-276.455137,0.0002485,7]